[Event "Titled Tuesday Blitz May 9 Late 2023"]
[White "Prohaszka, Peter"]
[Black "Zhigalko, Sergei"]
[WhiteFideId "726265"]
[BlackFideId "13502956"]
[WhiteElo "2626"]
[BlackElo "2626"]
[Result "0-1"]
[Round "06"]
[TimeControl "180+2"]
[Date "2023.05.09"]
[WhiteClock "0:00:16"]
[BlackClock "0:00:15"]

1. d4 {[%clk 0:02:55]}  Nf6 {[%clk 0:02:59]} 2. Nf3 {[%clk 0:02:55]}  e6 {[%clk 0:02:59]} 3. Bf4 {[%clk 0:02:54]}  b6 {[%clk 0:02:59]} 4. e3 {[%clk 0:02:53]}  Nh5 {[%clk 0:02:56]} 5. Bg5 {[%clk 0:02:50]}  Be7 {[%clk 0:02:57]} 6. Bxe7 {[%clk 0:02:36]}  Qxe7 {[%clk 0:02:58]} 7. Nfd2 {[%clk 0:02:36]}  Nf6 {[%clk 0:02:55]} 8. Be2 {[%clk 0:02:30]}  O-O {[%clk 0:02:53]} 9. Bf3 {[%clk 0:02:30]}  d5 {[%clk 0:02:50]} 10. O-O {[%clk 0:02:29]}  Bb7 {[%clk 0:02:43]} 11. c4 {[%clk 0:02:29]}  Nbd7 {[%clk 0:02:35]} 12. Nc3 {[%clk 0:02:28]}  c6 {[%clk 0:02:16]} 13. e4 {[%clk 0:02:23]}  dxc4 {[%clk 0:02:16]} 14. e5 {[%clk 0:02:19]}  Nd5 {[%clk 0:02:16]} 15. Nxc4 {[%clk 0:02:19]}  Ba6 {[%clk 0:02:16]} 16. Qa4 {[%clk 0:02:01]}  Nb4 {[%clk 0:01:50]} 17. Qb3 {[%clk 0:01:07]}  Rad8 {[%clk 0:01:43]} 18. Rfd1 {[%clk 0:01:06]}  c5 {[%clk 0:01:40]} 19. Nd6 {[%clk 0:01:02]}  Bd3 {[%clk 0:01:16]} 20. Rd2 {[%clk 0:00:46]}  Bc2 {[%clk 0:00:40]} 21. Qa3 {[%clk 0:00:26]}  a5 {[%clk 0:00:33]} 22. Nb7 {[%clk 0:00:20]}  Qg5 {[%clk 0:00:19]} 23. Re2 {[%clk 0:00:07]}  Rb8 {[%clk 0:00:19]} 24. dxc5 {[%clk 0:00:06]}  Bd3 {[%clk 0:00:18]} 25. c6 {[%clk 0:00:04]}  Bxe2 {[%clk 0:00:17]} 26. Nxe2 {[%clk 0:00:05]}  Nc2 {[%clk 0:00:11]} 27. Qd6 {[%clk 0:00:04]}  Nxe5 {[%clk 0:00:10]} 28. Be4 {[%clk 0:00:02]}  Nxa1 {[%clk 0:00:04]} 29. c7 {[%clk 0:00:03]}  Rbc8 {[%clk 0:00:04]} 30. f4 {[%clk 0:00:02]}  Qg4 {[%clk 0:00:03]} 31. Qxe5 {[%clk 0:00:03]}  Nc2 {[%clk 0:00:02]} 32. h3 {[%clk 0:00:03]}  Qh4 {[%clk 0:00:01]} 33. Bxc2 {[%clk 0:00:03]}  h6 {[%clk 0:00:01]} 34. Kh2 {[%clk 0:00:03]}  g6 {[%clk 0:00:02]} 35. Bd3 {[%clk 0:00:03]}  Qe7 {[%clk 0:00:02]} 36. Nd6 {[%clk 0:00:03]}  Rxc7 {[%clk 0:00:03]} 37. Ne4 {[%clk 0:00:03]}  f6 {[%clk 0:00:02]} 38. Qb5 {[%clk 0:00:03]}  e5 {[%clk 0:00:02]} 39. fxe5 {[%clk 0:00:04]}  Qxe5+ {[%clk 0:00:03]} 40. Qxe5 {[%clk 0:00:04]}  fxe5 {[%clk 0:00:04]} 41. Kg3 {[%clk 0:00:04]}  Rd8 {[%clk 0:00:04]} 42. Bb1 {[%clk 0:00:03]}  Kg7 {[%clk 0:00:05]} 43. N4c3 {[%clk 0:00:03]}  Rcd7 {[%clk 0:00:04]} 44. a4 {[%clk 0:00:04]}  Rd2 {[%clk 0:00:05]} 45. b3 {[%clk 0:00:03]}  Rb2 {[%clk 0:00:05]} 46. Be4 {[%clk 0:00:03]}  Rdd2 {[%clk 0:00:06]} 47. Bf3 {[%clk 0:00:03]}  Rxb3 {[%clk 0:00:06]} 48. Nb5 {[%clk 0:00:02]}  Rxe2 {[%clk 0:00:06]} 49. Nd6 {[%clk 0:00:01]}  e4 {[%clk 0:00:06]} 50. Kf4 {[%clk 0:00:01]}  exf3 {[%clk 0:00:06]} 51. gxf3 {[%clk 0:00:02]}  Rf2 {[%clk 0:00:07]} 52. h4 {[%clk 0:00:03]}  Rfxf3+ {[%clk 0:00:07]} 53. Ke4 {[%clk 0:00:04]}  Rfe3+ {[%clk 0:00:08]} 54. Kd5 {[%clk 0:00:04]}  Red3+ {[%clk 0:00:08]} 55. Kc6 {[%clk 0:00:04]}  Rxd6+ {[%clk 0:00:09]} 56. Kb7 {[%clk 0:00:05]}  b5 {[%clk 0:00:09]} 57. h5 {[%clk 0:00:06]}  bxa4+ {[%clk 0:00:09]} 58. Kc7 {[%clk 0:00:05]}  Re6 {[%clk 0:00:09]} 59. Kd7 {[%clk 0:00:06]}  Rbb6 {[%clk 0:00:08]} 60. hxg6 {[%clk 0:00:06]}  Rxg6 {[%clk 0:00:08]} 61. Kc7 {[%clk 0:00:06]}  h5 {[%clk 0:00:09]} 62. Kd8 {[%clk 0:00:07]}  h4 {[%clk 0:00:09]} 63. Ke7 {[%clk 0:00:08]}  h3 {[%clk 0:00:10]} 64. Kd7 {[%clk 0:00:08]}  a3 {[%clk 0:00:11]} 65. Ke8 {[%clk 0:00:09]}  a2 {[%clk 0:00:12]} 66. Ke7 {[%clk 0:00:10]}  a4 {[%clk 0:00:12]} 67. Kd8 {[%clk 0:00:11]}  a3 {[%clk 0:00:13]} 68. Kc7 {[%clk 0:00:12]}  h2 {[%clk 0:00:14]} 69. Kd7 {[%clk 0:00:13]}  Rbf6 {[%clk 0:00:14]} 70. Kd8 {[%clk 0:00:14]}  Rf7 {[%clk 0:00:14]} 71. Kc8 {[%clk 0:00:15]}  Kf8 {[%clk 0:00:14]} 72. Kd8 {[%clk 0:00:15]}  Rg8 {[%clk 0:00:14]} 73. Kc8 {[%clk 0:00:16]}  Kg7# {[%clk 0:00:15]} 0-1


[Site "https://www.chess.com"]

[Event "Titled Tuesday Blitz May 9 Late 2023"]
[White "Tari, Aryan"]
[Black "Timmermans, Mark"]
[WhiteFideId "1510045"]
[BlackFideId "1026399"]
[WhiteElo "2571"]
[BlackElo "2460"]
[Result "0-1"]
[Round "06"]
[TimeControl "180+2"]
[Date "2023.05.09"]
[WhiteClock "0:00:12"]
[BlackClock "0:00:23"]

1. d4 {[%clk 0:03:00]}  Nf6 {[%clk 0:02:55]} 2. Nf3 {[%clk 0:03:01]}  e6 {[%clk 0:02:56]} 3. Bf4 {[%clk 0:02:59]}  d5 {[%clk 0:02:57]} 4. e3 {[%clk 0:02:59]}  Bd6 {[%clk 0:02:57]} 5. Ne5 {[%clk 0:02:59]}  O-O {[%clk 0:02:58]} 6. Nd2 {[%clk 0:02:59]}  c5 {[%clk 0:02:58]} 7. c3 {[%clk 0:02:59]}  Nc6 {[%clk 0:02:52]} 8. Ndf3 {[%clk 0:02:50]}  Qc7 {[%clk 0:02:40]} 9. Bd3 {[%clk 0:02:48]}  cxd4 {[%clk 0:02:20]} 10. exd4 {[%clk 0:02:46]}  Ne4 {[%clk 0:01:57]} 11. Bg3 {[%clk 0:02:35]}  f6 {[%clk 0:01:50]} 12. Nxc6 {[%clk 0:02:35]}  bxc6 {[%clk 0:01:50]} 13. Qe2 {[%clk 0:02:31]}  f5 {[%clk 0:01:31]} 14. Bxd6 {[%clk 0:02:30]}  Qxd6 {[%clk 0:01:29]} 15. Ne5 {[%clk 0:02:28]}  a5 {[%clk 0:01:29]} 16. f3 {[%clk 0:02:24]}  Ng5 {[%clk 0:01:24]} 17. O-O {[%clk 0:02:18]}  Nf7 {[%clk 0:01:24]} 18. Nxf7 {[%clk 0:02:13]}  Rxf7 {[%clk 0:01:24]} 19. Rae1 {[%clk 0:02:13]}  c5 {[%clk 0:01:23]} 20. Qf2 {[%clk 0:02:09]}  c4 {[%clk 0:01:23]} 21. Bb1 {[%clk 0:02:01]}  a4 {[%clk 0:01:20]} 22. a3 {[%clk 0:02:01]}  Rb8 {[%clk 0:01:20]} 23. Re2 {[%clk 0:02:02]}  Rfb7 {[%clk 0:01:20]} 24. Rfe1 {[%clk 0:02:00]}  g6 {[%clk 0:01:17]} 25. h4 {[%clk 0:01:58]}  Bd7 {[%clk 0:01:12]} 26. h5 {[%clk 0:01:50]}  Kf7 {[%clk 0:01:11]} 27. Qh4 {[%clk 0:01:47]}  Qe7 {[%clk 0:01:06]} 28. hxg6+ {[%clk 0:01:46]}  hxg6 {[%clk 0:01:07]} 29. Qh7+ {[%clk 0:01:26]}  Kf6 {[%clk 0:01:06]} 30. Qh4+ {[%clk 0:01:26]}  Kf7 {[%clk 0:01:04]} 31. Qf2 {[%clk 0:01:07]}  Rh8 {[%clk 0:01:03]} 32. Qg3 {[%clk 0:00:55]}  Qh4 {[%clk 0:01:03]} 33. Qxh4 {[%clk 0:00:55]}  Rxh4 {[%clk 0:01:04]} 34. Kf2 {[%clk 0:00:56]}  Rb8 {[%clk 0:01:03]} 35. Kg3 {[%clk 0:00:54]}  Rbh8 {[%clk 0:00:52]} 36. Bc2 {[%clk 0:00:55]}  Kf6 {[%clk 0:00:51]} 37. Bxa4 {[%clk 0:00:44]}  Bxa4 {[%clk 0:00:39]} 38. Rxe6+ {[%clk 0:00:45]}  Kg5 {[%clk 0:00:40]} 39. Rd6 {[%clk 0:00:40]}  f4+ {[%clk 0:00:27]} 40. Kf2 {[%clk 0:00:40]}  Bc2 {[%clk 0:00:28]} 41. Rxd5+ {[%clk 0:00:24]}  Bf5 {[%clk 0:00:28]} 42. Rc5 {[%clk 0:00:22]}  Rb8 {[%clk 0:00:28]} 43. Re2 {[%clk 0:00:22]}  Rh1 {[%clk 0:00:28]} 44. Rxc4 {[%clk 0:00:23]}  Bd3 {[%clk 0:00:27]} 45. Rc5+ {[%clk 0:00:23]}  Kh6 {[%clk 0:00:27]} 46. b4 {[%clk 0:00:13]}  Bxe2 {[%clk 0:00:27]} 47. Kxe2 {[%clk 0:00:14]}  Ra1 {[%clk 0:00:25]} 48. Ra5 {[%clk 0:00:14]}  Ra2+ {[%clk 0:00:25]} 49. Kd3 {[%clk 0:00:12]}  Re8 {[%clk 0:00:26]} 50. d5 {[%clk 0:00:11]}  Rxg2 {[%clk 0:00:24]} 51. d6 {[%clk 0:00:11]}  Re3+ {[%clk 0:00:24]} 52. Kc4 {[%clk 0:00:11]}  Rd2 {[%clk 0:00:24]} 53. Rd5 {[%clk 0:00:11]}  Rxd5 {[%clk 0:00:23]} 54. Kxd5 {[%clk 0:00:12]}  Rxf3 {[%clk 0:00:21]} 55. c4 {[%clk 0:00:12]}  Rd3+ {[%clk 0:00:22]} 56. Ke4 {[%clk 0:00:12]}  Rxd6 {[%clk 0:00:22]} 57. Kxf4 {[%clk 0:00:13]}  Rd4+ {[%clk 0:00:23]} 58. Ke5 {[%clk 0:00:14]}  Rxc4 {[%clk 0:00:23]} 59. Kd5 {[%clk 0:00:14]}  Rc3 {[%clk 0:00:21]} 60. a4 {[%clk 0:00:13]}  g5 {[%clk 0:00:22]} 61. a5 {[%clk 0:00:14]}  g4 {[%clk 0:00:22]} 62. a6 {[%clk 0:00:12]}  g3 {[%clk 0:00:23]} 0-1


[Site "https://www.chess.com"]

[Event "Titled Tuesday Blitz May 9 Late 2023"]
[White "Salinas Herrera, Pablo"]
[Black "Jaracz, Pawel"]
[WhiteFideId "3407128"]
[BlackFideId "1102222"]
[WhiteElo "2546"]
[BlackElo "2438"]
[Result "1-0"]
[Round "06"]
[TimeControl "180+2"]
[Date "2023.05.09"]
[WhiteClock "0:00:14"]
[BlackClock "0:00:01"]

1. e4 {[%clk 0:03:00]}  c6 {[%clk 0:02:56]} 2. Nf3 {[%clk 0:02:59]}  d5 {[%clk 0:02:56]} 3. Nc3 {[%clk 0:03:00]}  Bg4 {[%clk 0:02:54]} 4. h3 {[%clk 0:03:00]}  Bxf3 {[%clk 0:02:54]} 5. Qxf3 {[%clk 0:02:59]}  Nf6 {[%clk 0:02:54]} 6. g3 {[%clk 0:02:56]}  e6 {[%clk 0:02:46]} 7. Bg2 {[%clk 0:02:55]}  Bb4 {[%clk 0:02:43]} 8. exd5 {[%clk 0:02:44]}  cxd5 {[%clk 0:02:42]} 9. O-O {[%clk 0:02:44]}  Nc6 {[%clk 0:02:40]} 10. Ne2 {[%clk 0:02:44]}  O-O {[%clk 0:02:36]} 11. d4 {[%clk 0:02:44]}  b5 {[%clk 0:02:36]} 12. a4 {[%clk 0:02:43]}  a6 {[%clk 0:02:34]} 13. c3 {[%clk 0:02:36]}  Be7 {[%clk 0:02:32]} 14. Rd1 {[%clk 0:01:55]}  Nd7 {[%clk 0:02:31]} 15. Nf4 {[%clk 0:01:53]}  Nb6 {[%clk 0:02:25]} 16. axb5 {[%clk 0:01:51]}  axb5 {[%clk 0:02:25]} 17. Rxa8 {[%clk 0:01:50]}  Qxa8 {[%clk 0:02:23]} 18. Nh5 {[%clk 0:01:48]}  Qd8 {[%clk 0:02:15]} 19. h4 {[%clk 0:01:34]}  Nc4 {[%clk 0:02:12]} 20. Bf1 {[%clk 0:01:18]}  Nd6 {[%clk 0:02:09]} 21. Nf4 {[%clk 0:01:03]}  Na5 {[%clk 0:01:57]} 22. Nd3 {[%clk 0:01:01]}  Nac4 {[%clk 0:01:45]} 23. Qe2 {[%clk 0:00:57]}  Ne4 {[%clk 0:01:44]} 24. Bg2 {[%clk 0:00:49]}  Ncd6 {[%clk 0:01:42]} 25. Ne5 {[%clk 0:00:49]}  Qc7 {[%clk 0:01:36]} 26. Bf4 {[%clk 0:00:49]}  Qb7 {[%clk 0:01:36]} 27. h5 {[%clk 0:00:45]}  h6 {[%clk 0:01:26]} 28. Nd3 {[%clk 0:00:31]}  Rc8 {[%clk 0:01:17]} 29. Ra1 {[%clk 0:00:28]}  Ra8 {[%clk 0:01:14]} 30. Rxa8+ {[%clk 0:00:27]}  Qxa8 {[%clk 0:01:13]} 31. Nc5 {[%clk 0:00:26]}  Qa1+ {[%clk 0:01:12]} 32. Kh2 {[%clk 0:00:25]}  Nf6 {[%clk 0:00:51]} 33. Bf3 {[%clk 0:00:20]}  Kf8 {[%clk 0:00:18]} 34. Kg2 {[%clk 0:00:20]}  Nf5 {[%clk 0:00:16]} 35. Qxb5 {[%clk 0:00:19]}  Kg8 {[%clk 0:00:12]} 36. Qb8+ {[%clk 0:00:19]}  Kh7 {[%clk 0:00:12]} 37. Qb3 {[%clk 0:00:17]}  Bxc5 {[%clk 0:00:12]} 38. dxc5 {[%clk 0:00:17]}  Ne4 {[%clk 0:00:13]} 39. Bxe4 {[%clk 0:00:17]}  dxe4 {[%clk 0:00:13]} 40. Qc2 {[%clk 0:00:18]}  Qe1 {[%clk 0:00:13]} 41. c6 {[%clk 0:00:16]}  e5 {[%clk 0:00:08]} 42. Bxe5 {[%clk 0:00:14]}  e3 {[%clk 0:00:01]} 43. Qxf5+ {[%clk 0:00:14]} 1-0


[Site "https://www.chess.com"]

[Event "Titled Tuesday Blitz May 9 Late 2023"]
[White "Bortnyk, Mykola"]
[Black "Bitoon, Richard"]
[WhiteFideId "14120836"]
[BlackFideId "5201110"]
[WhiteElo "2582"]
[BlackElo "2374"]
[Result "0-1"]
[Round "06"]
[TimeControl "180+2"]
[Date "2023.05.09"]
[WhiteClock "0:00:00"]
[BlackClock "0:00:18"]

1. d4 {[%clk 0:02:59]}  Nf6 {[%clk 0:03:00]} 2. c4 {[%clk 0:02:59]}  g6 {[%clk 0:03:00]} 3. g3 {[%clk 0:02:59]}  Bg7 {[%clk 0:03:01]} 4. Bg2 {[%clk 0:03:00]}  O-O {[%clk 0:03:01]} 5. Nc3 {[%clk 0:02:58]}  d6 {[%clk 0:03:02]} 6. Nf3 {[%clk 0:02:58]}  Nc6 {[%clk 0:03:03]} 7. O-O {[%clk 0:02:58]}  Bg4 {[%clk 0:03:03]} 8. h3 {[%clk 0:02:51]}  Bxf3 {[%clk 0:03:03]} 9. Bxf3 {[%clk 0:02:52]}  Nd7 {[%clk 0:03:04]} 10. e3 {[%clk 0:02:49]}  e5 {[%clk 0:03:04]} 11. Ne2 {[%clk 0:02:37]}  Qf6 {[%clk 0:03:03]} 12. Kg2 {[%clk 0:02:26]}  exd4 {[%clk 0:03:01]} 13. Bxc6 {[%clk 0:02:20]}  bxc6 {[%clk 0:02:56]} 14. Qxd4 {[%clk 0:02:16]}  c5 {[%clk 0:02:16]} 15. Qxf6 {[%clk 0:02:14]}  Bxf6 {[%clk 0:02:17]} 16. Rb1 {[%clk 0:02:15]}  a5 {[%clk 0:02:07]} 17. a4 {[%clk 0:02:07]}  Rfb8 {[%clk 0:02:06]} 18. b3 {[%clk 0:02:08]}  Nb6 {[%clk 0:02:05]} 19. Bd2 {[%clk 0:02:07]}  Kf8 {[%clk 0:02:01]} 20. e4 {[%clk 0:01:59]}  Ke8 {[%clk 0:02:01]} 21. Nf4 {[%clk 0:01:58]}  Kd7 {[%clk 0:02:00]} 22. Nd3 {[%clk 0:01:52]}  Bd4 {[%clk 0:01:53]} 23. f4 {[%clk 0:01:50]}  Rb7 {[%clk 0:01:53]} 24. Rfe1 {[%clk 0:01:48]}  Rab8 {[%clk 0:01:53]} 25. Rbd1 {[%clk 0:01:39]}  Nc8 {[%clk 0:01:45]} 26. Nc1 {[%clk 0:01:39]}  Bb2 {[%clk 0:01:45]} 27. Bxa5 {[%clk 0:01:27]}  Bxc1 {[%clk 0:01:45]} 28. Rxc1 {[%clk 0:01:28]}  Rxb3 {[%clk 0:01:45]} 29. e5 {[%clk 0:01:14]}  Ra3 {[%clk 0:01:45]} 30. Ra1 {[%clk 0:01:06]}  Rb2+ {[%clk 0:01:45]} 31. Kf1 {[%clk 0:00:54]}  Rf3+ {[%clk 0:01:45]} 32. Kg1 {[%clk 0:00:53]}  Rxg3+ {[%clk 0:01:45]} 33. Kh1 {[%clk 0:00:53]}  Rxh3+ {[%clk 0:01:46]} 34. Kg1 {[%clk 0:00:54]}  Rg3+ {[%clk 0:01:46]} 35. Kh1 {[%clk 0:00:54]}  Rf3 {[%clk 0:01:02]} 36. Re4 {[%clk 0:00:37]}  Rbf2 {[%clk 0:00:53]} 37. Be1 {[%clk 0:00:34]}  Rxf4 {[%clk 0:00:46]} 38. Re3 {[%clk 0:00:32]}  Rb2 {[%clk 0:00:43]} 39. a5 {[%clk 0:00:32]}  Rb7 {[%clk 0:00:40]} 40. a6 {[%clk 0:00:31]}  Ra7 {[%clk 0:00:39]} 41. Rc3 {[%clk 0:00:30]}  Nb6 {[%clk 0:00:38]} 42. exd6 {[%clk 0:00:28]}  cxd6 {[%clk 0:00:39]} 43. Rb3 {[%clk 0:00:24]}  Kc6 {[%clk 0:00:37]} 44. Bg3 {[%clk 0:00:19]}  Rd4 {[%clk 0:00:31]} 45. Rf3 {[%clk 0:00:15]}  f5 {[%clk 0:00:30]} 46. Bf2 {[%clk 0:00:15]}  Rxc4 {[%clk 0:00:30]} 47. Rfa3 {[%clk 0:00:15]}  g5 {[%clk 0:00:28]} 48. Kh2 {[%clk 0:00:13]}  h5 {[%clk 0:00:28]} 49. Kg3 {[%clk 0:00:14]}  h4+ {[%clk 0:00:28]} 50. Kf3 {[%clk 0:00:14]}  g4+ {[%clk 0:00:28]} 51. Ke2 {[%clk 0:00:15]}  g3 {[%clk 0:00:28]} 52. Be1 {[%clk 0:00:15]}  f4 {[%clk 0:00:28]} 53. Kf3 {[%clk 0:00:16]}  h3 {[%clk 0:00:28]} 54. Bd2 {[%clk 0:00:15]}  h2 {[%clk 0:00:27]} 55. R3a2 {[%clk 0:00:10]}  Rg7 {[%clk 0:00:21]} 56. Bxf4 {[%clk 0:00:04]}  Rxf4+ {[%clk 0:00:20]} 57. Kxf4 {[%clk 0:00:05]}  g2 {[%clk 0:00:20]} 58. a7 {[%clk 0:00:00]}  g1=Q {[%clk 0:00:18]} 0-1


[Site "https://www.chess.com"]

[Event "Titled Tuesday Blitz May 9 Late 2023"]
[White "Kramnik, Vladimir"]
[Black "Arabidze, Meri"]
[WhiteFideId "4101588"]
[BlackFideId "13604040"]
[WhiteElo "2703"]
[BlackElo "2405"]
[Result "1/2-1/2"]
[Round "06"]
[TimeControl "180+2"]
[Date "2023.05.09"]
[WhiteClock "0:00:02"]
[BlackClock "0:00:03"]

1. e4 {[%clk 0:03:00]}  c5 {[%clk 0:02:59]} 2. Nf3 {[%clk 0:03:00]}  e6 {[%clk 0:03:00]} 3. Be2 {[%clk 0:02:59]}  Nc6 {[%clk 0:02:59]} 4. O-O {[%clk 0:02:58]}  Qc7 {[%clk 0:02:54]} 5. d4 {[%clk 0:02:51]}  cxd4 {[%clk 0:02:52]} 6. Nxd4 {[%clk 0:02:50]}  Nf6 {[%clk 0:02:51]} 7. Nc3 {[%clk 0:02:49]}  a6 {[%clk 0:02:50]} 8. Be3 {[%clk 0:02:47]}  Be7 {[%clk 0:02:49]} 9. f4 {[%clk 0:02:43]}  d6 {[%clk 0:02:49]} 10. a4 {[%clk 0:02:43]}  O-O {[%clk 0:02:46]} 11. Kh1 {[%clk 0:02:43]}  Bd7 {[%clk 0:02:46]} 12. Nb3 {[%clk 0:02:40]}  Na5 {[%clk 0:02:46]} 13. Nxa5 {[%clk 0:02:35]}  Qxa5 {[%clk 0:02:46]} 14. Qd2 {[%clk 0:02:35]}  Qc7 {[%clk 0:02:16]} 15. a5 {[%clk 0:02:31]}  Bc6 {[%clk 0:02:16]} 16. Bb6 {[%clk 0:02:25]}  Qc8 {[%clk 0:02:08]} 17. Bf3 {[%clk 0:02:24]}  Nd7 {[%clk 0:02:02]} 18. Bg1 {[%clk 0:02:21]}  Qc7 {[%clk 0:02:02]} 19. Ne2 {[%clk 0:02:10]}  Nc5 {[%clk 0:01:52]} 20. Ng3 {[%clk 0:02:03]}  Rad8 {[%clk 0:01:37]} 21. b4 {[%clk 0:02:00]}  Nd7 {[%clk 0:01:36]} 22. c4 {[%clk 0:01:59]}  Qb8 {[%clk 0:00:44]} 23. Rab1 {[%clk 0:01:55]}  b5 {[%clk 0:00:42]} 24. axb6 {[%clk 0:01:51]}  Nxb6 {[%clk 0:00:42]} 25. Be2 {[%clk 0:01:46]}  d5 {[%clk 0:00:35]} 26. exd5 {[%clk 0:01:44]}  exd5 {[%clk 0:00:36]} 27. Nf5 {[%clk 0:01:42]}  Bf6 {[%clk 0:00:36]} 28. b5 {[%clk 0:01:12]}  axb5 {[%clk 0:00:32]} 29. cxb5 {[%clk 0:01:11]}  Bd7 {[%clk 0:00:29]} 30. Ng3 {[%clk 0:01:05]}  Nc4 {[%clk 0:00:28]} 31. Qb4 {[%clk 0:00:36]}  Rfe8 {[%clk 0:00:28]} 32. Bxc4 {[%clk 0:00:27]}  dxc4 {[%clk 0:00:29]} 33. Qxc4 {[%clk 0:00:27]}  Be6 {[%clk 0:00:29]} 34. Qc2 {[%clk 0:00:18]}  Bd5 {[%clk 0:00:29]} 35. b6 {[%clk 0:00:15]}  g6 {[%clk 0:00:29]} 36. Rbe1 {[%clk 0:00:14]}  h5 {[%clk 0:00:29]} 37. Ne4 {[%clk 0:00:13]}  Bg7 {[%clk 0:00:25]} 38. Ng5 {[%clk 0:00:13]}  Qb7 {[%clk 0:00:23]} 39. Rxe8+ {[%clk 0:00:11]}  Rxe8 {[%clk 0:00:23]} 40. Nf3 {[%clk 0:00:10]}  Be4 {[%clk 0:00:21]} 41. Qc7 {[%clk 0:00:10]}  Qd5 {[%clk 0:00:11]} 42. Re1 {[%clk 0:00:09]}  Ra8 {[%clk 0:00:06]} 43. Rf1 {[%clk 0:00:08]}  Re8 {[%clk 0:00:05]} 44. h3 {[%clk 0:00:07]}  Bf6 {[%clk 0:00:04]} 45. Qc5 {[%clk 0:00:06]}  Kg7 {[%clk 0:00:04]} 46. Qxd5 {[%clk 0:00:06]}  Bxd5 {[%clk 0:00:05]} 47. Ne5 {[%clk 0:00:06]}  h4 {[%clk 0:00:01]} 48. Bd4 {[%clk 0:00:05]}  Rb8 {[%clk 0:00:01]} 49. Kh2 {[%clk 0:00:05]}  Rb7 {[%clk 0:00:01]} 50. Rc1 {[%clk 0:00:05]}  Bxe5 {[%clk 0:00:01]} 51. Bxe5+ {[%clk 0:00:04]}  f6 {[%clk 0:00:02]} 52. Bc7 {[%clk 0:00:04]}  g5 {[%clk 0:00:01]} 53. Rd1 {[%clk 0:00:04]}  Bc6 {[%clk 0:00:01]} 54. fxg5 {[%clk 0:00:04]}  fxg5 {[%clk 0:00:01]} 55. Rd6 {[%clk 0:00:05]}  Be4 {[%clk 0:00:01]} 56. Kg1 {[%clk 0:00:05]}  Kf7 {[%clk 0:00:01]} 57. Kf2 {[%clk 0:00:05]}  Ke7 {[%clk 0:00:02]} 58. Rh6 {[%clk 0:00:03]}  Bf5 {[%clk 0:00:02]} 59. Rh5 {[%clk 0:00:03]}  Kf6 {[%clk 0:00:02]} 60. Rh8 {[%clk 0:00:03]}  Be6 {[%clk 0:00:01]} 61. Rd8 {[%clk 0:00:02]}  Ke7 {[%clk 0:00:01]} 62. Rd4 {[%clk 0:00:02]}  Kf6 {[%clk 0:00:02]} 63. Ra4 {[%clk 0:00:02]}  Bd5 {[%clk 0:00:01]} 64. Rb4 {[%clk 0:00:02]}  Be6 {[%clk 0:00:02]} 65. Rb2 {[%clk 0:00:02]}  Bd5 {[%clk 0:00:02]} 66. Ke3 {[%clk 0:00:03]}  Bc6 {[%clk 0:00:02]} 67. Kd4 {[%clk 0:00:03]}  Kf5 {[%clk 0:00:02]} 68. Kc5 {[%clk 0:00:04]}  Be4 {[%clk 0:00:03]} 69. Rf2+ {[%clk 0:00:03]}  Ke6 {[%clk 0:00:03]} 70. Kd4 {[%clk 0:00:03]}  Bc6 {[%clk 0:00:03]} 71. Kc5 {[%clk 0:00:04]}  Be4 {[%clk 0:00:03]} 72. Re2 {[%clk 0:00:04]}  Kf5 {[%clk 0:00:03]} 73. Rxe4 {[%clk 0:00:03]}  Kxe4 {[%clk 0:00:04]} 74. Kc6 {[%clk 0:00:04]}  Rxb6+ {[%clk 0:00:03]} 75. Kxb6 {[%clk 0:00:04]}  Ke3 {[%clk 0:00:02]} 76. g4 {[%clk 0:00:03]}  hxg3 {[%clk 0:00:02]} 77. Bxg3 {[%clk 0:00:01]}  Kf3 {[%clk 0:00:02]} 78. Be1 {[%clk 0:00:01]}  Kg2 {[%clk 0:00:03]} 79. h4 {[%clk 0:00:02]}  gxh4 {[%clk 0:00:03]} 80. Bxh4 {[%clk 0:00:02]} 1/2-1/2


[Site "https://www.chess.com"]

[Event "Titled Tuesday Blitz May 9 Late 2023"]
[White "Kuznetsov, Felix"]
[Black "ATM622"]
[WhiteFideId "34147990"]
[WhiteElo "2281"]
[BlackElo "2595"]
[Result "1-0"]
[Round "06"]
[TimeControl "180+2"]
[Date "2023.05.09"]
[WhiteClock "0:02:21"]
[BlackClock "0:01:55"]

1. e4 {[%clk 0:02:56]}  c6 {[%clk 0:03:00]} 2. d4 {[%clk 0:02:56]}  d5 {[%clk 0:03:00]} 3. exd5 {[%clk 0:02:57]}  cxd5 {[%clk 0:03:01]} 4. Bf4 {[%clk 0:02:57]}  Nc6 {[%clk 0:03:01]} 5. c3 {[%clk 0:02:58]}  Nf6 {[%clk 0:03:01]} 6. Nd2 {[%clk 0:02:58]}  g6 {[%clk 0:02:59]} 7. Bd3 {[%clk 0:02:57]}  Bg7 {[%clk 0:02:59]} 8. Ngf3 {[%clk 0:02:57]}  O-O {[%clk 0:02:59]} 9. O-O {[%clk 0:02:58]}  Bf5 {[%clk 0:02:59]} 10. Bxf5 {[%clk 0:02:58]}  gxf5 {[%clk 0:03:00]} 11. Ne5 {[%clk 0:02:58]}  e6 {[%clk 0:02:54]} 12. Bg5 {[%clk 0:02:58]}  h6 {[%clk 0:02:52]} 13. Bxf6 {[%clk 0:02:58]}  Bxf6 {[%clk 0:02:50]} 14. f4 {[%clk 0:02:55]}  Bxe5 {[%clk 0:02:46]} 15. fxe5 {[%clk 0:02:54]}  f6 {[%clk 0:02:40]} 16. Qh5 {[%clk 0:02:49]}  fxe5 {[%clk 0:02:34]} 17. Qg6+ {[%clk 0:02:48]}  Kh8 {[%clk 0:02:30]} 18. Qxh6+ {[%clk 0:02:49]}  Kg8 {[%clk 0:02:30]} 19. Qxe6+ {[%clk 0:02:50]}  Kg7 {[%clk 0:02:27]} 20. Rxf5 {[%clk 0:02:46]}  Rxf5 {[%clk 0:02:25]} 21. Qxf5 {[%clk 0:02:46]}  exd4 {[%clk 0:02:26]} 22. Rf1 {[%clk 0:02:40]}  dxc3 {[%clk 0:02:20]} 23. Qf7+ {[%clk 0:02:27]}  Kh8 {[%clk 0:02:20]} 24. Rf5 {[%clk 0:02:25]}  Qh4 {[%clk 0:02:08]} 25. Rh5+ {[%clk 0:02:25]}  Qxh5 {[%clk 0:02:08]} 26. Qxh5+ {[%clk 0:02:26]}  Kg7 {[%clk 0:02:05]} 27. bxc3 {[%clk 0:02:26]}  Rd8 {[%clk 0:01:59]} 28. Nf3 {[%clk 0:02:25]}  d4 {[%clk 0:01:57]} 29. cxd4 {[%clk 0:02:24]}  Kf6 {[%clk 0:01:58]} 30. Qh4+ {[%clk 0:02:24]}  Ke6 {[%clk 0:01:57]} 31. Qe4+ {[%clk 0:02:23]}  Kd6 {[%clk 0:01:55]} 32. h4 {[%clk 0:02:21]} 1-0


[Site "https://www.chess.com"]